Cogmind - Beta 13 @@@ ROGUE MODE // 2024.03.31 @ 03:38:55 Player: Auto Result: Destroyed by 8F-9KC(h) with Battle Rifle Performance ------------- Evolutions (0) 0 Regions Visited (3) 600 Robots Destroyed (35) 175 Value Destroyed (834) 834 Prototype IDs (1) 20 Alien Tech Used (0) 0 Bonus (0) 0 TOTAL SCORE: 1629 Bonus ------- None Cogmind --------- Core Integrity 0/250 Matter 300/300 Energy 200/200 System Corruption 0% Temperature Cool (0) Movement Treading (160) Location -10/Subcaves Parts ------- > --- POWER (1) -------- Subdweller Power Source > --- PROPULSION (2) --- Light Treads Light Treads > --- UTILITY (2) ------ Scrap Shield > --- WEAPON (2) ------- EM Pulse Gun Battle Rifle > --- INVENTORY (5) ---- Aluminum Leg Experimental Sensor Array Splice Drone Bay (6/6) EM Shotgun Rocket Launcher Peak State ------------ > --- POWER ------------ Light Nuclear Core > --- PROPULSION ------- Light Treads Light Treads > --- UTILITY ---------- Medium Storage Unit Splice Drone Bay > --- WEAPON ----------- EM Pulse Gun EM Shotgun > --- INVENTORY -------- Light Ion Engine Light Ion Engine Aluminum Leg Aluminum Leg Aluminum Leg Experimental Sensor Array Improved Terrain Scanner Light Assault Rifle Grenade Launcher Mining Laser [Rating: 18] Favorites ----------- Power Ion Engine Engine Ion Engine Power Core Light Nuclear Core Propulsion Light Treads Treads Light Treads Leg Aluminum Leg Utility Medium Storage Unit Device Sensor Array Storage Medium Storage Unit Hackware Hacking Suite Protection Medium Armor Plating Weapon EM Pulse Gun Energy Gun EM Pulse Gun Ballistic Gun Light Assault Rifle Launcher Rocket Launcher Special Weapon Mining Laser Build | -11 -10 -10 -10 ------- Run | Yrd Mat Min Sub Slots Evolved . | . . . . Power . | . . . . Propulsion . | . . . . Utility . | . . . . Weapon . | . . . . Parts Attached 36 | 7 19 7 3 Power 7 | 1 4 1 1 Engine 6 | 1 4 . 1 Core 1 | . . 1 . Reactor . | . . . . Propulsion 8 | 2 4 2 . Treads 5 | 2 1 2 . Leg 3 | . 3 . . Wheel . | . . . . Hover . | . . . . Flight . | . . . . Utility 8 | 2 4 1 1 Device 3 | 1 1 1 . Storage 2 | 1 1 . . Processor . | . . . . Hackware 1 | . 1 . . Protection 2 | . 1 . 1 Artifact . | . . . . Weapon 13 | 2 7 3 1 Energy Gun 6 | . 4 2 . Energy Cannon . | . . . . Ballistic Gun 5 | 2 2 . 1 Ballistic Cannon . | . . . . Launcher 1 | . . 1 . Special Weapon 1 | . 1 . . Impact Weapon . | . . . . Slashing Weapon . | . . . . Piercing Weapon . | . . . . Special Melee Weapon . | . . . . Unidentified Prototypes 1 | . . 1 . Parts Lost 3 | . 3 . . Power . | . . . . Propulsion 1 | . 1 . . Utility 2 | . 2 . . Weapon . | . . . . Highest Loss Streak 1 | . 1 . . To Critical Strikes . | . . . . Average Slot Usage (%) 96 | . 95 99 93 Engine 11 | . 14 7 3 Core 2 | . . 6 10 Treads 18 | . 20 14 28 Leg 9 | . 7 13 . Device 9 | . 8 13 7 Storage 13 | . 14 14 7 Protection 1 | . 1 . 6 Energy Gun 17 | . 13 23 26 Ballistic Gun 7 | . 12 . 1 Special Weapon 2 | . 2 4 . Naked Turns . | . . . . Heaviest Build 29 | 13 25 29 28 Greatest Support 40 | 40 40 40 40 Greatest Overweight (x) 1 | . 1 1 . Average Overweight (x) . | . . . . Largest Inventory Capacity 10 | 8 10 10 10 Average Capacity 9 | 7 9 10 7 Most Carried 10 | 8 10 10 10 Average Carried 9 | 5 9 9 7 Final Capacity 10 | 8 10 10 5 Final Carried 10 | 7 10 10 5 Class Distribution -------------------- 100% | Mutant Dominant Class ---------------- Mutant | -10/Materials Mutant | -10/Mines Mutant | -10/Subcaves Resources | -11 -10 -10 -10 ----------- Run | Yrd Mat Min Sub Matter Collected 683 | 229 343 81 30 Remotely . | . . . . Salvage Created 1029 | 22 738 269 . Parts 61 | 3 46 12 . Haulers Intercepted . | . . . . Recyclers Shooed . | . . . . Parts Field Recycled . | . . . . Retrieved Matter . | . . . . Parts Self-Destructed 9 | . . . 9 Prevented . | . . . . Kills | -11 -10 -10 -10 ------- Run | Yrd Mat Min Sub Combat Hostiles Destroyed 29 | . 21 8 . Guns 23 | . 19 4 . AOE 4 | . 1 3 . Classes Destroyed 5 | 1 4 . . Tunneler 1 | 1 . . . Operator 2 | . 2 . . Watcher 3 | . 3 . . Swarmer 12 | . 9 3 . Grunt 17 | . 12 5 . Best Kill Streak 4 | 1 4 3 . Combat Bots Only 4 | . 4 3 . Max Kills in Single Turn 3 | 1 1 3 . Gunslinging . | . . . . Exploded 3 | . 1 3 . Melee . | . . . . Uniques/NPCs Destroyed . | . . . . Combat | -11 -10 -10 -10 -------- Run | Yrd Mat Min Sub Hostile Shots Fired 131 | . 95 28 8 Missed 31 | . 23 5 3 Damage Taken 1171 | . 732 352 87 Core 254 | . 173 33 48 Absorbed by Shields . | . . . . Regen/Repaired (Parts) 96 | . 96 . . Core Remaining (%) 100 | 100 . . . Volleys Fired 98 | 5 76 16 1 Largest 2 | 2 2 2 2 Hottest 100 | 40 100 85 85 Shots Fired 195 | 10 151 32 2 Gun 193 | 10 150 31 2 Cannon . | . . . . Launcher 1 | . . 1 . Special 1 | . 1 . . Kinetic 93 | 10 83 . . Thermal 47 | . 47 . . Explosive 1 | . . 1 . Electromagnetic 54 | . 21 31 2 Robot Hit Streak 13 | 10 13 9 1 Robot Miss Streak 4 | . 4 2 1 Penetration Max . | . . . . Secondary Targets 1 | . . 1 . Max Gunslinging Chain 1 | . . 1 . Shots Hit Robots 138 | 10 98 29 1 Core Hits 57 | 2 42 12 1 Critical Kills . | . . . . Critical Parts Destroyed 2 | 2 . . . Critical Strikes 6 | 2 4 . . Burn 4 | . 4 . . Destroy 2 | 2 . . . Melee Attacks . | . . . . Impact . | . . . . Slashing . | . . . . Piercing . | . . . . Sneak Attacks . | . . . . Combat Hostiles . | . . . . Follow-up Attacks . | . . . . Damage Inflicted 1757 | 80 1070 599 8 Guns 1504 | 80 1050 366 8 Cannons . | . . . . Explosions 252 | . 20 232 . Melee . | . . . . Ramming 1 | . . 1 . Kinetic 533 | 80 453 . . Thermal 480 | . 416 64 . Explosive 168 | . . 168 . Electromagnetic 575 | . 201 366 8 Impact . | . . . . Slashing . | . . . . Piercing . | . . . . Highest Corruption . | . . . . Average Corruption . | . . . . Corruption Purged . | . . . . Corruption Blocked . | . . . . Overload Shots . | . . . . Overflow Damage 9 | . . 9 . Projectiles . | . . . . Explosions 9 | . . 9 . Melee . | . . . . Knockbacks . | . . . . Impact . | . . . . Kinetic . | . . . . Secondary . | . . . . Self-Inflicted Damage 68 | . 37 31 . Shots 2 | . 1 1 . Rammed 1 | . . 1 . Targets Rammed 1 | . . 1 . Kicked . | . . . . Crushed . | . . . . Highest Temperature 285 | . 174 237 285 Average Temperature 52 | . 42 70 161 Received Heat Transfer 736 | . 246 189 301 Siege Activations . | . . . . Robots Corrupted 1 | . . 1 . Combat Hostiles 1 | . . 1 . Parts Fried 3 | . 2 1 . Impact Corruptions . | . . . . Robots Melted 1 | . 1 . . Combat Hostiles 1 | . 1 . . Parts Melted 2 | . 2 . . Heat Transferred 1630 | . 1530 100 . Parts Sabotaged . | . . . . Parts Stolen . | . . . . Parts Stripped . | . . . . Power Chain Reactions 2 | . 1 1 . Alert | -11 -10 -10 -10 ------- Run | Yrd Mat Min Sub Peak Influence 176 | 5 176 148 . Initial 22 | . 3 22 . Average 61 | . 76 40 . Maximum Alert Level . | . . . . Low Security (%) 100 | 100 100 100 . Level 1 . | . . . . Level 2 . | . . . . Level 3 . | . . . . Level 4 . | . . . . Level 5 . | . . . . High Security . | . . . . Max Security . | . . . . Squads Dispatched 5 | . 5 . . Investigation 3 | . 3 . . Extermination . | . . . . Reinforcement 2 | . 2 . . Assault . | . . . . Garrison . | . . . . Intercept . | . . . . Searches Triggered . | . . . . Construction Impeded . | . . . . Haulers Reinforced . | . . . . Active Scanning Responses . | . . . . Cargo Convoy Interrupts . | . . . . Stealth | -11 -10 -10 -10 --------- Run | Yrd Mat Min Sub Distress Signals 1 | . 1 . . Communications Jammed . | . . . . Distress Signals . | . . . . Times Spotted 53 | . 39 7 7 Peak Tracking Total 6 | . 4 3 6 Tactical Retreats 6 | . 3 2 1 Traps | -11 -10 -10 -10 ------- Run | Yrd Mat Min Sub Traps Triggered 3 | . 3 . . Indirectly . | . . . . Trap Hack Attempts . | . . . . Triggered . | . . . . Disarmed . | . . . . Reprogrammed . | . . . . Reused . | . . . . Traps Extracted . | . . . . Installed . | . . . . Triggered . | . . . . Machines | -11 -10 -10 -10 ---------- Run | Yrd Mat Min Sub Machines Disabled 1 | . . 1 . Max in Single Turn 1 | . . 1 . Machines Repaired . | . . . . Machines Dismantled . | . . . . Machines Sabotaged . | . . . . Overloaded Fab Kills . | . . . . Hacking | -11 -10 -10 -10 --------- Run | Yrd Mat Min Sub Machines Accessed 10 | . 9 1 . Terminals 6 | . 6 . . Fabricators . | . . . . Repair Stations 1 | . 1 . . Recycling Units 2 | . 2 . . Scanalyzers . | . . . . Garrison Access . | . . . . Total Hacks 25 | . 24 1 . Successful 14 | . 13 1 . Failed 11 | . 11 . . Catastrophic 3 | . 3 . . Database Lockouts . | . . . . Manual 17 | . 17 . . Terminals 18 | . 18 . . Fabricators . | . . . . Repair Stations 2 | . 2 . . Recycling Units 4 | . 4 . . Scanalyzers . | . . . . Garrison Access . | . . . . Terminal Hacks 2 | . 1 1 . Open Door 1 | . . 1 . Terminal Index 1 | . 1 . . Fabricator Hacks . | . . . . Repair Station Hacks 2 | . 2 . . Scan Component 1 | . 1 . . Repair 1 | . 1 . . Recycling Unit Hacks 2 | . 2 . . Retrieve Components 2 | . 2 . . Scanalyzer . | . . . . Garrison Access Hacks . | . . . . Unauthorized Hacks 8 | . 8 . . Terminals 6 | . 6 . . Botnet 5 | . 5 . . Operators 1 | . 1 . . Fabricators . | . . . . Repair Stations . | . . . . Recycling Units 2 | . 2 . . Reject 2 | . 2 . . Scanalyzers . | . . . . Garrison Access . | . . . . Data Cores Recovered . | . . . . Used . | . . . . Hacking Detections 8 | . 8 . . Full Trace Events 4 | . 4 . . Feedback Events 1 | . 1 . . Hackware Fried 1 | . 1 . . Feedback Blocked . | . . . . Robot Schematics Acquired . | . . . . Robots Built . | . . . . Authchips . | . . . . Time . | . . . . Total Robot Build Rating . | . . . . Part Schematics Acquired . | . . . . Parts Built . | . . . . Authchips . | . . . . Time . | . . . . Total Part Build Rating . | . . . . Parts Repaired 1 | . 1 . . Time 32 | . 32 . . Parts Recycled . | . . . . Recycled Matter . | . . . . Retrieved Matter . | . . . . Retrieved Components 6 | . 6 . . Parts Scanalyzed . | . . . . Part Schematics Acquired . | . . . . Parts Damaged . | . . . . Bothacking | -11 -10 -10 -10 ------------ Run | Yrd Mat Min Sub Used RIF Installer . | . . . . Robots Hacked . | . . . . Non-combat . | . . . . Combat . | . . . . Robot Hacks Applied . | . . . . Relay Couplers Released . | . . . . Fabnet Peak Effective % . | . . . . Robots Rewired . | . . . . Allies Hacked . | . . . . Hacks Repelled . | . . . . Allies | -11 -10 -10 -10 -------- Run | Yrd Mat Min Sub Total Allies 2 | . . 2 . Largest Group 1 | . . 1 . Highest-Rated Group 16 | . . 16 . Highest-Rated Ally 16 | . . 16 . Total Orders 2 | . . 2 . RETURN 2 | . . 2 . Ally Attacks 9 | . . 9 . Total Damage 53 | . . 53 . Kills . | . . . . Allies Corrupted . | . . . . Allies Melted . | . . . . Intel | -11 -10 -10 -10 ------- Run | Yrd Mat Min Sub Robot Analysis Total . | . . . . Derelict Logs Recovered 1 | . . 1 . Drone Launches 15 | . . 15 . Drone Recoveries 15 | . . 15 . Exploration | -11 -10 -10 -10 ------------- Run | Yrd Mat Min Sub Turns Passed 4465 | 139 2658 1451 217 Spaces Moved 1880 | 60 1014 697 109 Core 13 | 13 . . . Treads 1246 | 47 692 398 109 Legs 621 | . 322 299 . Wheels . | . . . . Hover . | . . . . Flight . | . . . . Fastest Speed 50 | 50 120 160 160 Average Speed 161 | 136 155 172 160 Slowest Speed 190 | 160 190 190 160 Overloaded Moves . | . . . . Propulsion Burnouts . | . . . . Robots Hopped . | . . . . Cave-ins Triggered . | . . . . Exploration Rate (%) 53 | 5 99 101 8 Regions Visited 3 Branch Regions 2 Pre-discovered Areas . | . . . . Known Exits Taken . | . . . . Unknown Exits Taken 3 | 1 1 1 . Scrap Searched 2 | . . 1 1 Spaces Dug 1 | . 1 . . Terrain Destroyed 19 | . 3 16 . Melee . | . . . . Projectile 1 | . 1 . . AOE 18 | . 2 16 . Terrain Rammed . | . . . . Walls Destroyed . | . . . . Machines Disabled . | . . . . Actions | -11 -10 -10 -10 --------- Run | Yrd Mat Min Sub Total 3138 | 109 1961 913 155 Wait 1046 | 24 816 180 26 Move 1877 | 59 1013 696 109 Hop . | . . . . Pick Up 44 | 14 19 6 5 Fast Attach 5 | . 4 1 . Attach 12 | 7 3 . 2 Detach . | . . . . Swap 19 | . 12 6 1 Drop 36 | . 18 7 11 Fire 98 | 5 76 16 1 Melee . | . . . . Ram . | . . . . Kick . | . . . . Crush 1 | . . 1 . Escape Stasis . | . . . . Rewire . | . . . . Trap . | . . . . Miscellaneous . | . . . . Route ------- -11/Scrapyard -10/Materials (discovered 6 exits: [*Mat x3] / *Min x2 / [*Sub]) -10/Mines (discovered 3 exits: [*Mat x2] / [*Sub]) -10/Subcaves History --------- Turn | Location | Event 8 | -11/Scrapyard | Discovered new exit (range 16) 140 | -11/Scrapyard | Entered Materials 154 | -10/Materials | Discovered new exit (range 16) 311 | -10/Materials | Build established: Mutant 491 | -10/Materials | Discovered new exit (range 8) 1328 | -10/Materials | Discovered new exit (range 16) 1998 | -10/Materials | Hacking Suite fried by hacking feedback 2064 | -10/Materials | Core integrity fell below 50% 2231 | -10/Materials | Discovered new exit (range 13) 2290 | -10/Materials | Discovered new exit (range 4) 2293 | -10/Materials | Discovered new exit (range 15) 2461 | -10/Materials | Repaired Shotgun 2798 | -10/Materials | Entered Mines 2876 | -10/Mines | Found the Drone Emporium 2890 | -10/Mines | Found Prototype Device 2890 | -10/Mines | Identified Splice Drone Bay 3031 | -10/Mines | Found a damaged Exp. Sensor Array with a note attached 3036 | -10/Mines | Found Prototype Device 3120 | -10/Mines | Discovered new exit (range 4) 3450 | -10/Mines | Joined a pair of Derelicts in attacking an 0b10 outpost 3604 | -10/Mines | Discovered new exit (range 9) 3831 | -10/Mines | Core integrity fell below 20% 3854 | -10/Mines | Received a Rocket Launcher from a helpful Derelict 4158 | -10/Mines | Discovered new exit (range 5) 4249 | -10/Mines | Entered Subcaves 4466 | -10/Subcaves | Destroyed by 8F-9KC(h) with Battle Rifle Last Messages --------------- 04360_ Dropped Aluminum Leg. 04361_ Dropped Med. Storage Unit. 04364_ Dropped Splice Drone Bay. 04366_ Acquired 4 matter. 04367_ Acquired Splice Drone Bay. 04384_ Acquired 6 matter. 04402_ Dropped Lgt. Nuclear Core. 04403_ Acquired Sub. Power Source. 04423_ Subatomizers dissect the Imp. Terrain Scanner. 04432_ Searching scrap... 04432_ Found Humpback. 04432_ Found Battle Rifle. 04432_ Found 27 Matter. 04433_ Acquired 10 matter. 04436_ Acquired Battle Rifle. 04454_ Acquired 6 matter. 04457_ Acquired 4 matter. 04466_ S-10 Pest destroyed. 04466_ HV Slug penetrates S-10 Pest. 04466_ S-10 Pest knocked back. Map ----- +----------------------------------------------------+ | ?????????????????????????????????????????????????? | | ?????????????????????????????????????????????????? | | ?????????????????????????????????????????????????? | | ?????????????????????????????????????????????????? | | ?????????????????????????????????????????????????? | | ?????????????????????????????????????????????????? | | ?????????????????????????????????????????????????? | | ?????????????????????????????????????????????????? | | ?????????????????????????????????????????????????? | | ?????????????????????????????????????????????????? | | ??????????????????????## #??????????????????????? | | ????????????????????# ##????????????????????? | | ??????????????????# ????????????????????? | | ??????????????????# ????????????????????? | | ??????????????##### % ????????????????????? | | ?????????????? ?????????????????????? | | ??????????????? % ?????????????????????? | | ???????????????? % ?????????????????????? | | ????????????????? #???????##????????????? | | ?????????????????? #????? """#???????????? | | ??? ?#????????????? #???? "????????????? | | ??? ##????????#????# #### s "????????????? | | ??? #???????## ???# *%[ ""????????????? | | ?? ???????## ????# ???????????????? | | ?? ???????# ???## s ???????????????????? | | ?? ????????? ???# h@#??????????????????????? | | ?? #????###?## ???# ##?????????????????????? | | ?# ????## ## ####;# ###???????????????????? | | # #????# % "###% ####????????????????? | | #????# ## % ##???????????????? | | #??### ! # "" #???????????????? | | #???# !%& ######" #???????????????? | | #????????### & ###??##""" #???????????????? | | #??????????## ######"" ##???????????????? | | ######??###### ""##" #????????????????? | | = #### % #### "#### #????????????????? | | [ ## #?# "##??#%!#????????????????? | | #?## "##??## #????????????????? | | #### ! " ##??#" "#????????????????? | | ## &=| " #### ""#????????????????? | | %&%&*= #????????????????? | | ### *! ##????????????????? | | #?## % #### * # # ###?????????????????? | | ???#########??################???????????????????? | | ?????????????????????????????????????????????????? | | ?????????????????????????????????????????????????? | | ?????????????????????????????????????????????????? | | ?????????????????????????????????????????????????? | | ?????????????????????????????????????????????????? | | ?????????????????????????????????????????????????? | +----------------------------------------------------+ Best States ------------- Heat Dissipation 25 Energy Generation 15 Energy Capacity 250 Matter Stores 300 Matter Capacity 300 Sight Range 16 Robot Scan Range 14 Terrain Scan Range 16 Terrain Scan Density 10 Armor Coverage 800 Evasion (%) 55 Recoil Reduction 2 Offensive Hacking 10 Item Schematics ----------------- None Robot Schematics ------------------ None Fabricated ------------ Nothing Alien Tech Used ----------------- None Achievements -------------- None Challenges ------------ None Game ------ Seed SigixDisruptionPick Manual? 0 Play Time 00:30:25 Cumulative 51.1 hours Start 2024.03.31 @ 03:09:14 End 2024.03.31 @ 03:38:55 Sessions 1 Manual Loads 0 Difficulty Rogue Special Mode None Game No. 26 Rogue 1 Adventurer 25 Explorer 0 Win Type - Total 0 Types 0/0/0/0/0/0/0/0/0 Lore% 14 Gallery% 30 Achievement% 28 Wizard Run 0 Options --------- Layout 0 ASCII 0 Keyboard 0 Movement Mouse Keybinds 0 Fullscreen 2 Font 18/SmallcapsGlow Map View 76x50 Zoom Use 5% Tactical HUD 1 Map Filters NONE Filters NONE Steam 1 RUN: bc4951e2-efa3-4f95-82bb-91b072ee25be